fUSD/lending_fUSD_20250219
["ID","MTS","AMOUNT","RATE_DAILY","PERIOD"]
[353611508,1739957455935,-500.0,0.00014273,2]
[353611509,1739957455944,-500.0,0.00014273,2]
[353611510,1739957455954,-500.0,0.00014273,2]
[353611511,1739957455963,-500.0,0.00014273,2]
[353611512,1739957455973,-500.0,0.00014273,2]
[353611513,1739957455985,-400.23,0.00014273,2]
[353611514,1739957455995,-2171.31,0.00014273,2]
[353611515,1739957456004,-1987.14,0.00014273,2]
[353611516,1739957456013,-661.61,0.00014273,2]
[353611517,1739957456023,-889.64,0.00014273,2]
[353611518,1739957456033,-500.0,0.00014273,2]
[353611519,1739957456042,-538.22,0.00014273,2]
[353611520,1739957456052,-500.0,0.00014273,2]
[353611521,1739957456063,-577.83,0.00014273,2]
[353611522,1739957456073,-571.64,0.00014273,2]
[353611523,1739957456083,-500.0,0.00014273,2]
[353611524,1739957456092,-681.91,0.00014273,2]
[353611525,1739957456101,-993.26,0.00014273,2]
[353611526,1739957456111,-500.0,0.00014273,2]
[353611527,1739957456120,-1520.67,0.00014273,2]
[353611528,1739957456130,-500.0,0.00014273,2]
[353611529,1739957456139,-500.0,0.00014273,2]
[353611530,1739957456148,-1361.76,0.00014273,2]
[353611531,1739957456157,-500.0,0.00014273,2]
[353611532,1739957456167,-1987.65,0.00014273,2]
[353611533,1739957456176,-576.77,0.00014273,2]
[353611534,1739957456185,-1842.25,0.00014273,2]
[353611535,1739957456195,-506.24,0.00014273,2]
[353611536,1739957456205,-500.0,0.00014273,2]
[353611537,1739957456214,-3328.08,0.00014273,2]
[353611538,1739957456223,-1152.23,0.00014273,2]
[353611539,1739957456233,-547.06,0.00014273,2]
[353611540,1739957456242,-805.91,0.00014273,2]
[353611541,1739957456251,-500.0,0.00014273,2]
[353611542,1739957456260,-715.88,0.00014273,2]
[353611543,1739957456269,-500.0,0.00014273,2]
[353611544,1739957456278,-1109.67,0.00014273,2]
[353611545,1739957456287,-1648.06,0.00014273,2]
[353611546,1739957456298,-500.0,0.00014273,2]
[353611547,1739957456307,-2315.06,0.00014273,2]
[353611548,1739957456316,-500.0,0.00014273,2]
[353611549,1739957456326,-783.73,0.00014273,2]
[353611550,1739957456336,-4965.72,0.00014273,2]
[353611551,1739957456345,-569.74,0.00014273,2]
[353611552,1739957456355,-542.9,0.00014273,2]
[353611553,1739957456364,-1255.58,0.00014273,2]
[353611554,1739957456373,-500.0,0.00014273,2]
[353611555,1739957456383,-571.6,0.00014273,2]
[353611556,1739957456392,-500.0,0.00014273,2]
[353611557,1739957456402,-595.06,0.00014273,2]
[353611558,1739957456411,-500.0,0.00014273,2]
[353611559,1739957456420,-870.4,0.00014273,2]
[353611560,1739957456430,-535.92,0.00014273,2]
[353611561,1739957456439,-500.0,0.00014273,2]
[353611562,1739957456448,-500.0,0.00014273,2]
[353611563,1739957456457,-1009.78,0.00014273,2]
[353611564,1739957456467,-1312.22,0.00014273,2]
[353611565,1739957456476,-690.92,0.00014273,2]
[353611566,1739957456485,-500.0,0.00014273,2]
[353611567,1739957456494,-1038.88,0.00014273,2]
[353611568,1739957456503,-510.11,0.00014273,2]
[353611569,1739957456513,-500.0,0.00014273,2]
[353611570,1739957456522,-1128.72,0.00014273,2]
[353611571,1739957456531,-685.38,0.00014273,2]
[353611572,1739957456540,-1857.62,0.00014273,2]
[353611573,1739957456551,-500.0,0.00014273,2]
[353611574,1739957456560,-1630.13,0.00014273,2]
[353611575,1739957456569,-1105.85,0.00014273,2]
[353611576,1739957456579,-1389.95,0.00014273,2]
[353611577,1739957456589,-500.0,0.00014273,2]
[353611578,1739957456599,-531.86,0.00014273,2]
[353611579,1739957456608,-595.83,0.00014273,2]
[353611580,1739957456617,-1423.63,0.00014273,2]
[353611581,1739957456626,-735.93,0.00014273,2]
[353611582,1739957456635,-1130.06,0.00014273,2]
[353611583,1739957456645,-981.47,0.00014273,2]
[353611584,1739957456654,-743.49,0.00014273,2]
[353611585,1739957456664,-623.46,0.00014273,2]
[353611586,1739957456674,-1141.26,0.00014273,2]
[353611587,1739957456683,-1482.15,0.00014273,2]
[353611588,1739957456693,-551.14,0.00014273,2]
[353611589,1739957456702,-500.0,0.00014273,2]
[353611590,1739957456711,-1986.52,0.00014273,2]
[353611591,1739957456721,-1547.16,0.00014273,2]
[353611592,1739957456730,-500.0,0.00014273,2]
[353611593,1739957456739,-500.0,0.00014273,2]
[353611594,1739957456749,-596.19,0.00014273,2]
[353611595,1739957456758,-1228.63,0.00014273,2]
[353611596,1739957456767,-500.0,0.00014273,2]
[353611597,1739957456777,-1614.6,0.00014273,2]
[353611598,1739957456786,-1429.02,0.00014273,2]
[353611599,1739957456796,-515.56,0.00014273,2]
[353611600,1739957456805,-504.01,0.00014273,2]
[353611601,1739957456814,-1375.73,0.00014273,2]
[353611602,1739957456824,-625.37,0.00014273,2]
[353611603,1739957456834,-751.56,0.00014273,2]
[353611604,1739957456844,-1045.9,0.00014273,2]
[353611605,1739957456854,-500.0,0.00014273,2]
[353611606,1739957456863,-500.0,0.00014273,2]
[353611607,1739957456873,-2639.36,0.00014273,2]
[353611608,1739957456883,-1195.24,0.00014273,2]
[353611609,1739957456892,-500.0,0.00014273,7]
[353611610,1739957456902,-883.01,0.00014273,2]
[353611611,1739957456911,-783.63,0.00014273,2]
[353611612,1739957456921,-923.97,0.00014273,2]
[353611613,1739957456930,-500.0,0.00014273,2]
[353611614,1739957456940,-500.0,0.00014273,2]
[353611615,1739957456949,-515.97,0.00014273,2]
[353611616,1739957456959,-500.0,0.00014273,2]
[353611617,1739957456969,-533.29,0.00014273,2]
[353611618,1739957456981,-902.44,0.00014273,2]
[353611619,1739957456995,-561.8,0.00014273,2]
[353611620,1739957457004,-500.0,0.00014273,2]
[353611621,1739957457014,-556.13,0.00014273,2]
[353611622,1739957457025,-2055.15,0.00014273,2]
[353611623,1739957457035,-3073.81,0.00014273,2]
[353611624,1739957457044,-871.44,0.00014273,2]
[353611625,1739957457055,-500.0,0.00014273,2]
[353611626,1739957457065,-500.0,0.00014273,2]
[353611627,1739957457074,-826.88,0.00014273,2]
[353611628,1739957457087,-1204.91,0.00014273,2]
[353611629,1739957457096,-500.0,0.00014273,2]
[353611630,1739957457107,-520.39,0.00014273,2]
[353611631,1739957457116,-500.0,0.00014273,2]
[353611632,1739957457126,-500.0,0.00014273,2]
[353611633,1739957457136,-255.55433632,0.00014273,2]
[353611634,1739957457146,-627.31,0.00014273,2]
[353611635,1739957457156,-2207.52,0.00014273,2]
[353611636,1739957457165,-1049.1,0.00014273,2]
[353611637,1739957457175,-500.0,0.00014273,2]
[353611638,1739957457184,-2021.43,0.00014273,2]
[353611639,1739957457192,-500.0,0.00014273,2]
[353611640,1739957457201,-500.0,0.00014273,2]
[353611641,1739957457211,-500.0,0.00014273,2]
[353611642,1739957457222,-500.0,0.00014273,2]
[353611643,1739957457232,-1422.8,0.00014273,2]
[353611644,1739957457241,-887.63,0.00014273,2]
[353611645,1739957457251,-500.0,0.00014273,2]
[353611646,1739957457260,-763.45,0.00014273,2]
[353611647,1739957457269,-500.0,0.000143,2]
[353611648,1739957457279,-151.0,0.00014349,2]
[353611649,1739957457289,-1987.14,0.00014355,2]
[353611650,1739957457300,-500.0,0.00014355,2]
[353611651,1739957457309,-993.26,0.00014355,2]
[353611652,1739957457319,-1361.76,0.00014355,2]
[353611653,1739957457329,-3328.08,0.00014355,2]
[353611654,1739957457339,-805.91,0.00014355,2]
[353611655,1739957457348,-1648.06,0.00014355,2]
[353611656,1739957457358,-2315.06,0.00014355,2]
[353611657,1739957457367,-569.74,0.00014355,2]
[353611658,1739957457377,-535.92,0.00014355,2]
[353611659,1739957457387,-1009.78,0.00014355,2]
[353611660,1739957457397,-827.2,0.00014355,2]
[353611661,1739957457406,-1857.62,0.00014355,2]
[353611662,1739957457416,-774.83,0.00014355,2]
[353611663,1739957457426,-587.22,0.00014355,2]
[353611664,1739957457436,-1389.95,0.00014355,2]
[353611665,1739957457445,-2086.08,0.00014355,2]
[353611666,1739957457454,-1423.63,0.00014355,2]
[353611667,1739957457464,-981.47,0.00014355,2]
[353611668,1739957457474,-500.0,0.00014355,2]
[353611669,1739957457483,-1141.26,0.00014355,2]
[353611670,1739957457497,-853.54,0.00014355,2]
[353611671,1739957457507,-539.54,0.00014355,2]
[353611672,1739957457517,-1547.16,0.00014355,2]
[353611673,1739957457526,-500.0,0.00014355,2]
[353611674,1739957457536,-1228.63,0.00014355,2]
[353611675,1739957457545,-1000.57,0.00014355,2]
[353611676,1739957457559,-1614.6,0.00014355,2]
[353611677,1739957457569,-3508.55,0.00014355,2]
[353611678,1739957457579,-645.74,0.00014355,2]
[353611679,1739957457589,-645.74,0.00014355,2]
[353611680,1739957457599,-645.74,0.00014355,2]
[353611681,1739957457609,-645.74,0.00014355,2]
[353611682,1739957457619,-645.86618106,0.00014355,2]
[353611683,1739957457628,-2167.87,0.00014355,2]
[353611684,1739957457638,-500.0,0.00014355,2]
[353611685,1739957457648,-2639.36,0.00014355,2]
[353611686,1739957457658,-2190.71,0.00014355,2]
[353611687,1739957457667,-883.01,0.00014355,2]
[353611688,1739957457678,-515.97,0.00014355,2]
[353611689,1739957457688,-1967.58,0.00014355,2]
[353611690,1739957457698,-902.44,0.00014355,2]
[353611691,1739957457707,-1557.18,0.00014355,2]
[353611692,1739957457717,-2055.15,0.00014355,2]
[353611693,1739957457727,-3073.81,0.00014355,2]
[353611694,1739957457737,-566.77,0.00014355,2]
[353611695,1739957457747,-826.88,0.00014355,2]
[353611696,1739957457757,-1204.91,0.00014355,2]
[353611697,1739957457767,-505.46231814,0.00014355,2]
[353611698,1739957457777,-750.63,0.00014355,2]
[353611699,1739957457787,-500.0,0.00014355,2]
[353611700,1739957457796,-2207.52,0.00014355,2]
[353611701,1739957457807,-500.0,0.00014355,2]
[353611702,1739957457817,-2021.43,0.00014355,2]
[353611703,1739957457826,-1770.14,0.00014355,2]
[353611704,1739957457836,-500.0,0.00014355,2]
[353611705,1739957457846,-500.0,0.00014355,2]
[353611706,1739957457857,-1422.8,0.00014355,2]
[353611707,1739957457867,-500.0,0.00014355,2]
[353611708,1739957457877,-887.63,0.00014355,2]
[353611709,1739957457887,-500.0,0.00014355,2]
[353611710,1739957457897,-837.0,0.00014356,2]
[353611711,1739957457907,-568.24,0.00014356,2]
[353611712,1739957457917,-794.72,0.00014356,2]
[353611713,1739957457928,-744.33,0.00014356,2]
[353611714,1739957457938,-500.0,0.00014356,2]
[353611715,1739957457948,-500.0,0.00014356,2]
[353611716,1739957457958,-500.0,0.00014356,2]
[353611717,1739957457968,-1086.46,0.00014356,2]
[353611718,1739957457981,-852.16,0.00014356,2]
[353611719,1739957457994,-289.76,0.00014356,2]
[353611720,1739957458004,-876.52,0.00014356,2]
[353611721,1739957458014,-500.0,0.00014356,2]
[353611722,1739957458026,-694.12,0.00014356,2]
[353611723,1739957458036,-500.0,0.00014356,2]
[353611724,1739957458046,-500.0,0.00014356,2]
[353611725,1739957458056,-500.0,0.00014356,2]
[353611726,1739957458066,-3017.52,0.00014356,2]
[353611727,1739957458077,-720.19,0.00014356,2]
[353611728,1739957458087,-500.0,0.00014356,2]
[353611729,1739957458097,-675.84,0.00014356,2]
[353611730,1739957458107,-1284.93,0.00014356,2]
[353611731,1739957458117,-1020.2,0.00014356,2]
[353611732,1739957458127,-500.0,0.00014356,2]
[353611733,1739957458137,-500.0,0.00014356,2]
[353611734,1739957458148,-640.32,0.00014356,2]
[353611735,1739957458157,-2649.22,0.00014356,2]
[353611736,1739957458258,-522.05328325,0.00014356,2]
[353611737,1739957458299,-500.0,0.00014356,2]
[353611738,1739957458309,-1937.36,0.00014356,2]
[353611739,1739957458319,-500.0,0.00014356,2]
[353611740,1739957458329,-500.0,0.00014356,2]
[353611741,1739957458338,-500.0,0.00014356,2]
[353611742,1739957458348,-661.65,0.00014356,2]
[353611743,1739957458357,-1923.78,0.00014356,2]
[353611744,1739957458367,-1499.07,0.00014356,2]
[353611745,1739957458377,-687.68,0.00014356,2]
[353611746,1739957458387,-1705.94,0.00014356,2]
[353611747,1739957458397,-500.0,0.00014356,2]
[353611748,1739957458408,-500.0,0.00014356,2]
[353611749,1739957458418,-500.0,0.00014356,2]
[353611750,1739957458428,-500.0,0.00014356,2]
[353611751,1739957458438,-500.0,0.00014356,2]
[353611752,1739957458448,-2171.31,0.00014356,2]
[353611753,1739957458458,-661.61,0.00014356,2]
[353611754,1739957458467,-889.64,0.00014356,2]
[353611755,1739957458477,-500.0,0.00014356,2]
[353611756,1739957458487,-538.22,0.00014356,2]
[353611757,1739957458496,-577.83,0.00014356,2]
[353611758,1739957458506,-571.64,0.00014356,2]
[353611759,1739957458517,-500.0,0.00014356,2]
[353611760,1739957458527,-681.91,0.00014356,2]
[353611761,1739957458538,-500.0,0.00014356,2]
[353611762,1739957458550,-1520.67,0.00014356,2]
[353611763,1739957458560,-500.0,0.00014356,2]
[353611764,1739957458570,-500.0,0.00014356,2]
[353611765,1739957458580,-500.0,0.00014356,2]
[353611766,1739957458590,-1987.65,0.00014356,2]
[353611767,1739957458600,-576.77,0.00014356,2]
[353611768,1739957458609,-1842.25,0.00014356,2]
[353611769,1739957458620,-506.24,0.00014356,2]
[353611770,1739957458630,-500.0,0.00014356,2]
[353611771,1739957458640,-1152.23,0.00014356,2]
[353611772,1739957458650,-547.06,0.00014356,2]
[353611773,1739957458659,-500.0,0.00014356,2]
[353611774,1739957458669,-715.88,0.00014356,2]
[353611775,1739957458678,-500.0,0.00014356,2]
[353611776,1739957458688,-1109.67,0.00014356,2]
[353611777,1739957458697,-500.0,0.00014356,2]
[353611778,1739957458706,-500.0,0.00014356,2]
[353611779,1739957458715,-783.73,0.00014356,2]
[353611780,1739957458725,-4965.72,0.00014356,2]
[353611781,1739957458735,-542.9,0.00014356,2]
[353611782,1739957458744,-1255.58,0.00014356,2]
[353611783,1739957458754,-500.0,0.00014356,2]
[353611784,1739957458764,-571.6,0.00014356,2]
[353611785,1739957458774,-449.86736089,0.00014356,2]
[353611786,1739957458784,-595.06,0.00014356,2]
[353611787,1739957458794,-500.0,0.00014356,2]
[353611788,1739957458805,-870.4,0.00014356,2]
[353611789,1739957458814,-500.0,0.00014356,2]
[353611790,1739957458823,-500.0,0.00014356,2]
[353611791,1739957458833,-1312.22,0.00014356,2]
[353611792,1739957458843,-690.92,0.00014356,2]
[353611793,1739957458853,-500.0,0.00014356,2]
[353611794,1739957458863,-1038.88,0.00014356,2]
[353611795,1739957458873,-510.11,0.00014356,2]
[353611796,1739957458883,-500.0,0.00014356,2]
[353611797,1739957458893,-1128.72,0.00014356,2]
[353611798,1739957458903,-685.38,0.00014356,2]
[353611799,1739957458912,-500.0,0.00014356,2]
[353611800,1739957458922,-1630.13,0.00014356,2]
[353611801,1739957458932,-1105.85,0.00014356,2]
[353611802,1739957458943,-500.0,0.00014356,2]
[353611803,1739957458953,-531.86,0.00014356,2]
[353611804,1739957458963,-595.83,0.00014356,2]
[353611805,1739957458974,-735.93,0.00014356,2]
[353611806,1739957458986,-1130.06,0.00014356,2]
[353611807,1739957458996,-743.49,0.00014356,2]
[353611808,1739957459007,-623.46,0.00014356,2]
[353611809,1739957459016,-1482.15,0.00014356,2]
[353611810,1739957459028,-551.14,0.00014356,2]
[353611811,1739957459039,-500.0,0.00014356,2]
[353611812,1739957459050,-1986.52,0.00014356,2]
[353611813,1739957459061,-500.0,0.00014356,2]
[353611814,1739957459072,-596.19,0.00014356,2]
[353611815,1739957459082,-500.0,0.00014356,2]
[353611816,1739957459092,-1429.02,0.00014356,2]
[353611817,1739957459102,-515.56,0.00014356,2]
[353611818,1739957459112,-504.01,0.00014356,2]
[353611819,1739957459121,-1375.73,0.00014356,2]
[353611820,1739957459131,-625.37,0.00014356,2]
[353611821,1739957459141,-751.56,0.00014356,2]
[353611822,1739957459151,-1045.9,0.00014356,2]
[353611823,1739957459161,-500.0,0.00014356,2]
[353611824,1739957459171,-1195.24,0.00014356,2]
[353611825,1739957459180,-500.0,0.00014356,7]
[353611826,1739957459191,-783.63,0.00014356,2]
[353611827,1739957459201,-923.97,0.00014356,2]
[353611828,1739957459210,-500.0,0.00014356,2]
[353611829,1739957459220,-500.0,0.00014356,2]
[353611830,1739957459231,-500.0,0.00014356,2]
[353611831,1739957459240,-533.29,0.00014356,2]
[353611832,1739957459249,-561.8,0.00014356,2]
[353611833,1739957459259,-500.0,0.00014356,2]
[353611834,1739957459268,-556.13,0.00014356,2]
[353611835,1739957459278,-871.44,0.00014356,2]
[353611836,1739957459288,-500.0,0.00014356,2]
[353611837,1739957459297,-500.0,0.00014356,2]
[353611838,1739957459313,-520.39,0.00014356,2]
[353611839,1739957459323,-500.0,0.00014356,2]
[353611840,1739957459333,-627.31,0.00014356,2]
[353611841,1739957459343,-1049.1,0.00014356,2]
[353611842,1739957459353,-500.0,0.00014356,2]
[353611843,1739957459363,-500.0,0.00014356,2]
[353611844,1739957459373,-1016.36501437,0.00014371,2]
[353611845,1739957459382,-500.0,0.00014437,2]
[353611846,1739957459391,-1987.14,0.00014437,2]
[353611847,1739957459400,-500.0,0.00014437,2]
[353611848,1739957459410,-993.26,0.00014437,2]
[353611849,1739957459420,-1361.76,0.00014437,2]
[353611850,1739957459430,-1155.82,0.00014437,2]
[353611851,1739957459441,-3328.08,0.00014437,2]
[353611852,1739957459451,-1111.83,0.00014437,2]
[353611853,1739957459461,-805.91,0.00014437,2]
[353611854,1739957459472,-624.12217,0.00014437,2]
[353611855,1739957459485,-794.73,0.00014437,2]
[353611856,1739957459495,-1648.06,0.00014437,2]
[353611857,1739957459505,-162.079268,0.00014437,2]
[353611858,1739957459516,-1304.4,0.00014437,2]
[353611859,1739957459525,-2315.06,0.00014437,2]
[353611860,1739957459534,-657.44,0.00014437,2]
[353611861,1739957459544,-500.0,0.00014437,2]
[353611862,1739957459554,-569.74,0.00014437,2]
[353611863,1739957459564,-1701.32,0.00014437,2]
[353611864,1739957459573,-797.341175,0.00014437,2]
[353611865,1739957459582,-1111.32,0.00014437,2]
[353611866,1739957459593,-535.92,0.00014437,2]
[353611867,1739957459603,-1614.24,0.00014437,2]
[353611868,1739957459613,-1009.78,0.00014437,2]
[353611869,1739957459623,-827.2,0.00014437,2]
[353611870,1739957459633,-1080.02,0.00014437,2]
[353611871,1739957459642,-1857.62,0.00014437,2]
[353611872,1739957459652,-774.83,0.00014437,2]
[353611873,1739957459661,-1961.46,0.00014437,2]
[353611874,1739957459671,-587.22,0.00014437,2]
[353611875,1739957459681,-1389.95,0.00014437,2]
[353611876,1739957459691,-2439.57,0.00014437,2]
[353611877,1739957459701,-2086.08,0.00014437,2]
[353611878,1739957459711,-1423.63,0.00014437,2]
[353611879,1739957459721,-894.72,0.00014437,2]
[353611880,1739957459732,-981.47,0.00014437,2]
[353611881,1739957459742,-500.0,0.00014437,2]
[353611882,1739957459752,-2456.73,0.00014437,2]
[353611883,1739957459763,-1141.26,0.00014437,2]
[353611884,1739957459773,-853.54,0.00014437,2]
[353611885,1739957459783,-500.0,0.00014437,2]
[353611886,1739957459794,-2040.34,0.00014437,2]
[353611887,1739957459806,-539.54,0.00014437,2]
[353611888,1739957459816,-1547.16,0.00014437,2]
[353611889,1739957459826,-500.0,0.00014437,2]
[353611890,1739957459836,-1228.63,0.00014437,2]
[353611891,1739957459846,-1000.57,0.00014437,2]
[353611892,1739957459856,-1614.6,0.00014437,2]
[353611893,1739957459865,-2888.4,0.00014437,2]
[353611894,1739957459875,-3508.55,0.00014437,2]
[353611895,1739957459884,-2167.87,0.00014437,2]
[353611896,1739957459896,-500.0,0.00014437,2]
[353611897,1739957459906,-2639.36,0.00014437,2]
[353611898,1739957459917,-2190.71,0.00014437,2]
[353611899,1739957459927,-883.01,0.00014437,2]
[353611900,1739957459938,-500.0,0.00014437,2]
[353611901,1739957459949,-515.97,0.00014437,2]
[353611902,1739957459959,-1967.58,0.00014437,2]
[353611903,1739957459969,-902.44,0.00014437,2]
[353611904,1739957459981,-1719.33,0.00014437,2]
[353611905,1739957459994,-1557.18,0.00014437,2]
[353611906,1739957460004,-2055.15,0.00014437,2]
[353611907,1739957460014,-3073.81,0.00014437,2]
[353611908,1739957460027,-566.77,0.00014437,2]
[353611909,1739957460047,-1651.38,0.00014437,2]
[353611910,1739957460060,-826.88,0.00014437,2]
[353611911,1739957460071,-1204.91,0.00014437,2]
[353611912,1739957460081,-750.63,0.00014437,2]
[353611913,1739957460091,-500.0,0.00014437,2]
[353611914,1739957460101,-2207.52,0.00014437,2]
[353611915,1739957460111,-2277.87,0.00014437,2]
[353611916,1739957460121,-500.0,0.00014437,2]
[353611917,1739957460131,-2021.43,0.00014437,2]
[353611918,1739957460141,-1770.14,0.00014437,2]
[353611919,1739957460151,-500.0,0.00014437,2]
[353611920,1739957460161,-500.0,0.00014437,2]
[353611921,1739957460171,-1516.86,0.00014437,2]
[353611922,1739957460181,-1422.8,0.00014437,2]
[353611923,1739957460191,-338.26021214,0.00014437,2]
[353611924,1739957460200,-568.24,0.00014438,2]
[353611925,1739957460210,-794.72,0.00014438,2]
[353611926,1739957460220,-744.33,0.00014438,2]
[353611927,1739957460231,-500.0,0.00014438,2]
[353611928,1739957460240,-500.0,0.00014438,2]
[353611929,1739957460250,-500.0,0.00014438,2]
[353611930,1739957460261,-1086.46,0.00014438,2]
[353611931,1739957460271,-852.16,0.00014438,2]
[353611932,1739957460281,-876.52,0.00014438,2]
[353611933,1739957460291,-500.0,0.00014438,2]
[353611934,1739957460300,-694.12,0.00014438,2]
[353611935,1739957460310,-500.0,0.00014438,2]
[353611936,1739957460321,-500.0,0.00014438,2]
[353611937,1739957460331,-500.0,0.00014438,2]
[353611938,1739957460341,-3017.52,0.00014438,2]
[353611939,1739957460351,-720.19,0.00014438,2]
[353611940,1739957460360,-500.0,0.00014438,2]
[353611941,1739957460370,-675.84,0.00014438,2]
[353611942,1739957460380,-1284.93,0.00014438,2]
[353611943,1739957460389,-1020.2,0.00014438,2]
[353611944,1739957460399,-500.0,0.00014438,2]
[353611945,1739957460409,-500.0,0.00014438,2]
[353611946,1739957460419,-640.32,0.00014438,2]
[353611947,1739957460428,-2649.22,0.00014438,2]
[353611948,1739957460439,-500.0,0.00014438,2]
[353611949,1739957460449,-1937.36,0.00014438,2]
[353611950,1739957460464,-500.0,0.00014438,2]
[353611951,1739957460478,-500.0,0.00014438,2]
[353611952,1739957460488,-500.0,0.00014438,2]
[353611953,1739957460498,-661.65,0.00014438,2]
[353611954,1739957460508,-1923.78,0.00014438,2]
[353611955,1739957460787,-1499.07,0.00014438,2]
[353611956,1739957460798,-687.68,0.00014438,2]
[353611957,1739957460808,-1705.94,0.00014438,2]
[353611958,1739957460818,-212.48701223,0.00014438,2]
[353611959,1739957460828,-500.0,0.00014438,2]
[353611960,1739957460838,-500.0,0.00014438,2]
[353611961,1739957460848,-500.0,0.00014438,2]
[353611962,1739957460858,-500.0,0.00014438,2]
[353611963,1739957460868,-2171.31,0.00014438,2]
[353611964,1739957460878,-661.61,0.00014438,2]
[353611965,1739957460887,-889.64,0.00014438,2]
[353611966,1739957460897,-500.0,0.00014438,2]
[353611967,1739957460907,-538.22,0.00014438,2]
[353611968,1739957460917,-577.83,0.00014438,2]
[353611969,1739957460927,-571.64,0.00014438,2]
[353611970,1739957460937,-500.0,0.00014438,2]
[353611971,1739957460947,-681.91,0.00014438,2]
[353611972,1739957460958,-500.0,0.00014438,2]
[353611973,1739957460967,-1520.67,0.00014438,2]
[353611974,1739957460977,-500.0,0.00014438,2]
[353611975,1739957460990,-500.0,0.00014438,2]
[353611976,1739957460999,-500.0,0.00014438,2]
[353611977,1739957461009,-1987.65,0.00014438,2]
[353611978,1739957461019,-576.77,0.00014438,2]
[353611979,1739957461030,-1842.25,0.00014438,2]
[353611980,1739957461040,-506.24,0.00014438,2]
[353611981,1739957461050,-500.0,0.00014438,2]
[353611982,1739957461061,-1152.23,0.00014438,2]
[353611983,1739957461071,-547.06,0.00014438,2]
[353611984,1739957461081,-483.60571894,0.00014438,2]
[353611985,1739957461090,-715.88,0.00014438,2]
[353611986,1739957461100,-500.0,0.00014438,2]
[353611987,1739957461110,-1109.67,0.00014438,2]
[353611988,1739957461120,-412.03216349,0.00014438,2]
[353611989,1739957461129,-196.44,0.00014438,2]
[353611990,1739957461139,-783.73,0.00014438,2]
[353611991,1739957461149,-4965.72,0.00014438,2]
[353611992,1739957461158,-542.9,0.00014438,2]
[353611993,1739957461168,-1255.58,0.00014438,2]
[353611994,1739957461178,-500.0,0.00014438,2]
[353611995,1739957461188,-571.6,0.00014438,2]
[353611996,1739957461198,-595.06,0.00014438,2]
[353611997,1739957461207,-336.98039795,0.00014438,2]
[353611998,1739957461217,-870.4,0.00014438,2]
[353611999,1739957461226,-500.0,0.00014438,2]
[353612000,1739957461236,-500.0,0.00014438,2]
[353612001,1739957461245,-1312.22,0.00014438,2]
[353612002,1739957461255,-690.92,0.00014438,2]
[353612003,1739957461264,-500.0,0.00014438,2]
[353612004,1739957461274,-1038.88,0.00014438,2]
[353612005,1739957461284,-510.11,0.00014438,2]
[353612006,1739957461293,-500.0,0.00014438,2]
[353612007,1739957461306,-1128.72,0.00014438,2]